[Event "*** Titled Tuesday Blitz"]
[Site "Chess.com"]
[Date "2020.05.12"]
[Round "2"]
[White "Arjun2002"]
[Black "LogoCzar"]
[Result "1-0"]
[WhiteElo "2660"]
[BlackElo "2424"]
[TimeControl "180+1"]
[EndTime "10:17:41 PDT"]
[Termination "Arjun2002 won by resignation"]

1. e4 {[%clk 0:03:00.9]} 1... e5 {[%clk 0:02:59.9]} 2. Nf3 {[%clk 0:03:00.8]}
2... Nc6 {[%clk 0:03:00.3]} 3. Bc4 {[%clk 0:03:00.7]} 3... Nf6 {[%clk
0:03:00.1]} 4. d3 {[%clk 0:03:01]} 4... Bc5 {[%clk 0:02:59.7]} 5. c3 {[%clk
0:02:59.7]} 5... a6 {[%clk 0:02:59.7]} 6. O-O {[%clk 0:02:56.8]} 6... d6 {[%clk
0:02:59.8]} 7. a4 {[%clk 0:02:53.6]} 7... Ba7 {[%clk 0:02:59.8]} 8. Re1 {[%clk
0:02:52.6]} 8... O-O {[%clk 0:02:53.1]} 9. h3 {[%clk 0:02:52.6]} 9... Be6 {[%clk
0:02:49.3]} 10. Bxe6 {[%clk 0:02:51.7]} 10... fxe6 {[%clk 0:02:50.2]} 11. b4
{[%clk 0:02:48.7]} 11... Nh5 {[%clk 0:02:46.3]} 12. Ra2 {[%clk 0:02:48.2]} 12...
Qf6 {[%clk 0:02:45.1]} 13. Be3 {[%clk 0:02:43.5]} 13... Nf4 {[%clk 0:02:42]} 14.
Bxf4 {[%clk 0:02:43.5]} 14... Qxf4 {[%clk 0:02:41.7]} 15. Nbd2 {[%clk
0:02:42.4]} 15... Rf6 {[%clk 0:02:41]} 16. Qe2 {[%clk 0:02:34.9]} 16... Raf8
{[%clk 0:02:39.7]} 17. b5 {[%clk 0:02:32.6]} 17... Ne7 {[%clk 0:02:15.8]} 18.
Nf1 {[%clk 0:02:14.1]} 18... Rg6 {[%clk 0:02:09.9]} 19. N1h2 {[%clk 0:02:12]}
19... Qg3 {[%clk 0:01:58.3]} 20. Ng4 {[%clk 0:01:42.9]} 20... h5 {[%clk
0:01:56.8]} 21. d4 {[%clk 0:01:07.1]} 21... Qf4 {[%clk 0:01:55.1]} 22. Ngh2
{[%clk 0:01:03.4]} 22... Rgf6 {[%clk 0:01:42.7]} 23. bxa6 {[%clk 0:00:51.2]}
23... bxa6 {[%clk 0:01:38.4]} 24. Rb1 {[%clk 0:00:49.2]} 24... g5 {[%clk
0:01:30.4]} 25. g3 {[%clk 0:00:42.1]} 25... Qxf3 {[%clk 0:01:27.1]} 26. Nxf3
{[%clk 0:00:42]} 26... Rxf3 {[%clk 0:01:28]} 27. Rb7 {[%clk 0:00:41.2]} 27...
Nc6 {[%clk 0:01:20.6]} 28. Qc4 {[%clk 0:00:41]} 28... exd4 {[%clk 0:00:51.3]}
29. Qxc6 {[%clk 0:00:39.3]} 29... Bc5 {[%clk 0:00:45.6]} 30. Qxc7 {[%clk
0:00:39]} 30... R3f7 {[%clk 0:00:42.7]} 31. Qc6 {[%clk 0:00:36.8]} 31... Rxf2
{[%clk 0:00:31.2]} 32. Rxf2 {[%clk 0:00:36]} 32... dxc3 {[%clk 0:00:31.5]} 33.
Qxc5 {[%clk 0:00:31.8]} 33... dxc5 {[%clk 0:00:30.7]} 34. Rxf8+ {[%clk
0:00:31.8]} 34... Kxf8 {[%clk 0:00:31.6]} 35. Rb3 {[%clk 0:00:31.8]} 35... c2
{[%clk 0:00:30.1]} 36. Rc3 {[%clk 0:00:31.9]} 36... Ke7 {[%clk 0:00:30]} 37.
Rxc5 {[%clk 0:00:32]} 1-0

[Event "*** Titled Tuesday Blitz"]
[Site "Chess.com"]
[Date "2020.05.12"]
[Round "2"]
[White "GMartin_Petrov"]
[Black "Azerichess"]
[Result "0-1"]
[WhiteElo "2579"]
[BlackElo "3042"]
[TimeControl "180+1"]
[EndTime "10:17:43 PDT"]
[Termination "Azerichess won by resignation"]

1. e4 {[%clk 0:03:00.9]} 1... c6 {[%clk 0:02:57.8]} 2. d4 {[%clk 0:03:00.4]}
2... d5 {[%clk 0:02:58.3]} 3. e5 {[%clk 0:03:00.8]} 3... Bf5 {[%clk 0:02:57.9]}
4. Nf3 {[%clk 0:03:00.9]} 4... e6 {[%clk 0:02:57.7]} 5. Be2 {[%clk 0:03:01]}
5... Ne7 {[%clk 0:02:57.8]} 6. O-O {[%clk 0:03:00.2]} 6... Nd7 {[%clk
0:02:57.7]} 7. a4 {[%clk 0:02:59.4]} 7... c5 {[%clk 0:02:56.9]} 8. c4 {[%clk
0:02:52.3]} 8... dxc4 {[%clk 0:02:45.4]} 9. Na3 {[%clk 0:02:44.8]} 9... Nc6
{[%clk 0:02:40.9]} 10. Nxc4 {[%clk 0:02:34.4]} 10... Be4 {[%clk 0:02:27.4]} 11.
Bg5 {[%clk 0:02:22.7]} 11... Qb8 {[%clk 0:02:21.6]} 12. dxc5 {[%clk 0:02:05.3]}
12... Bxc5 {[%clk 0:02:12.1]} 13. Rc1 {[%clk 0:02:01.4]} 13... h6 {[%clk
0:01:55.6]} 14. Bf4 {[%clk 0:01:54.5]} 14... Bd5 {[%clk 0:01:52.6]} 15. Nd6+
{[%clk 0:01:17.1]} 15... Bxd6 {[%clk 0:01:51]} 16. exd6 {[%clk 0:01:18]} 16...
O-O {[%clk 0:01:51.3]} 17. Bg3 {[%clk 0:01:14.1]} 17... Qd8 {[%clk 0:01:49.3]}
18. Nd4 {[%clk 0:01:07.8]} 18... Qb6 {[%clk 0:01:35.5]} 19. Nb5 {[%clk
0:00:39.5]} 19... Rac8 {[%clk 0:01:22.2]} 20. Qd2 {[%clk 0:00:39.7]} 20... Nf6
{[%clk 0:01:20]} 21. Nc3 {[%clk 0:00:24.3]} 21... Nd4 {[%clk 0:01:10.6]} 22.
Nxd5 {[%clk 0:00:23.6]} 22... Nxd5 {[%clk 0:01:08.8]} 23. Rxc8 {[%clk
0:00:22.7]} 23... Rxc8 {[%clk 0:01:08.3]} 24. Bd3 {[%clk 0:00:23]} 24... Nb3
{[%clk 0:00:53.9]} 25. Qe2 {[%clk 0:00:21.3]} 25... Qd4 {[%clk 0:00:49.5]} 26.
Bb1 {[%clk 0:00:20.2]} 26... Nc1 {[%clk 0:00:21.5]} 27. Qf3 {[%clk 0:00:19.3]}
27... Qd2 {[%clk 0:00:22]} 28. Rd1 {[%clk 0:00:17.7]} 28... Ne2+ {[%clk
0:00:21.6]} 29. Qxe2 {[%clk 0:00:13.3]} 29... Qxe2 {[%clk 0:00:21]} 0-1

[Event "*** Titled Tuesday Blitz"]
[Site "Chess.com"]
[Date "2020.05.12"]
[Round "2"]
[White "Msb2"]
[Black "pollo2016"]
[Result "1-0"]
[WhiteElo "2906"]
[BlackElo "2556"]
[TimeControl "180+1"]
[EndTime "10:17:43 PDT"]
[Termination "Msb2 won by resignation"]

1. d4 {[%clk 0:03:00.9]} 1... Nf6 {[%clk 0:02:56.4]} 2. c4 {[%clk 0:03:01]} 2...
c5 {[%clk 0:02:56]} 3. d5 {[%clk 0:03:00.8]} 3... g6 {[%clk 0:02:55.2]} 4. Nc3
{[%clk 0:03:01.2]} 4... Bg7 {[%clk 0:02:55.2]} 5. e4 {[%clk 0:03:01.9]} 5... d6
{[%clk 0:02:55.4]} 6. h3 {[%clk 0:03:01]} 6... O-O {[%clk 0:02:54.4]} 7. Nf3
{[%clk 0:03:01.6]} 7... e5 {[%clk 0:02:53.1]} 8. Bd3 {[%clk 0:03:02.2]} 8... Nh5
{[%clk 0:02:47.2]} 9. Be3 {[%clk 0:02:52.2]} 9... Nf4 {[%clk 0:01:08.3]} 10. Bf1
{[%clk 0:02:52.2]} 10... a6 {[%clk 0:01:07.7]} 11. g3 {[%clk 0:02:50]} 11... Nh5
{[%clk 0:01:07.6]} 12. a4 {[%clk 0:02:50.6]} 12... Nd7 {[%clk 0:01:07.9]} 13.
Be2 {[%clk 0:02:46.6]} 13... Qe8 {[%clk 0:01:07.6]} 14. Nd2 {[%clk 0:02:46.2]}
14... Nhf6 {[%clk 0:01:07.4]} 15. g4 {[%clk 0:02:46.5]} 15... h6 {[%clk
0:00:55.1]} 16. h4 {[%clk 0:02:46.4]} 16... Nh7 {[%clk 0:00:54.4]} 17. Nf1
{[%clk 0:02:45.8]} 17... f5 {[%clk 0:00:52.3]} 18. gxf5 {[%clk 0:02:45.7]} 18...
gxf5 {[%clk 0:00:53.2]} 19. exf5 {[%clk 0:02:46.6]} 19... Rxf5 {[%clk
0:00:53.2]} 20. Ng3 {[%clk 0:02:46.2]} 20... Rf8 {[%clk 0:00:52.9]} 21. Rg1
{[%clk 0:02:45.7]} 21... Ndf6 {[%clk 0:00:47.6]} 22. Nge4 {[%clk 0:02:37.4]}
22... Kh8 {[%clk 0:00:24.5]} 23. Nxd6 {[%clk 0:02:33.9]} 23... Qe7 {[%clk
0:00:24.7]} 24. Nde4 {[%clk 0:02:34.2]} 24... Nxe4 {[%clk 0:00:24.6]} 25. Nxe4
{[%clk 0:02:35.1]} 25... Qxh4 {[%clk 0:00:25]} 26. Nxc5 {[%clk 0:02:30.9]} 26...
Ng5 {[%clk 0:00:22.7]} 27. Qd2 {[%clk 0:01:59.6]} 27... b6 {[%clk 0:00:22.5]}
28. Nd3 {[%clk 0:01:19.9]} 28... Ne4 {[%clk 0:00:21.7]} 29. Qc2 {[%clk 0:01:17]}
29... Bf5 {[%clk 0:00:22.3]} 30. O-O-O {[%clk 0:01:16.2]} 30... Rac8 {[%clk
0:00:22.1]} 31. Kb1 {[%clk 0:01:14.9]} 31... b5 {[%clk 0:00:21.2]} 32. c5 {[%clk
0:01:13.1]} 32... b4 {[%clk 0:00:19.9]} 33. Rh1 {[%clk 0:01:10.6]} 33... Qf6
{[%clk 0:00:19.9]} 34. Qc1 {[%clk 0:01:04.2]} 34... b3 {[%clk 0:00:15.3]} 35.
Bxh6 {[%clk 0:01:03.1]} 35... Kg8 {[%clk 0:00:14.1]} 36. Bxg7 {[%clk 0:01:02.9]}
36... Kxg7 {[%clk 0:00:14.7]} 37. Rdg1+ {[%clk 0:01:01.8]} 37... Kf7 {[%clk
0:00:15.3]} 38. Rh6 {[%clk 0:00:52.3]} 38... Qe7 {[%clk 0:00:05.2]} 39. Bh5+
{[%clk 0:00:52.4]} 1-0

[Event "*** Titled Tuesday Blitz"]
[Site "Chess.com"]
[Date "2020.05.12"]
[Round "2"]
[White "crescentmoon2411"]
[Black "ThePatrick27"]
[Result "1-0"]
[WhiteElo "2815"]
[BlackElo "2526"]
[TimeControl "180+1"]
[EndTime "10:17:43 PDT"]
[Termination "crescentmoon2411 won by checkmate"]

1. e4 {[%clk 0:02:59.4]} 1... e6 {[%clk 0:02:57.9]} 2. d4 {[%clk 0:02:59.4]}
2... d5 {[%clk 0:02:58]} 3. Nc3 {[%clk 0:02:58.9]} 3... Bb4 {[%clk 0:02:57.4]}
4. e5 {[%clk 0:02:56.7]} 4... c5 {[%clk 0:02:56.8]} 5. a3 {[%clk 0:02:56.5]}
5... Bxc3+ {[%clk 0:02:56.3]} 6. bxc3 {[%clk 0:02:57.4]} 6... Qa5 {[%clk
0:02:56.7]} 7. Bd2 {[%clk 0:02:55.6]} 7... Qa4 {[%clk 0:02:56.8]} 8. Qg4 {[%clk
0:02:41]} 8... Kf8 {[%clk 0:02:55.9]} 9. Qd1 {[%clk 0:02:37.1]} 9... b6 {[%clk
0:02:51.7]} 10. c4 {[%clk 0:02:16.2]} 10... Nc6 {[%clk 0:02:36.9]} 11. Nf3
{[%clk 0:02:10.5]} 11... Nge7 {[%clk 0:02:27.1]} 12. cxd5 {[%clk 0:02:07.2]}
12... exd5 {[%clk 0:02:23.7]} 13. c3 {[%clk 0:01:59.1]} 13... Qxd1+ {[%clk
0:02:21.3]} 14. Rxd1 {[%clk 0:01:59.6]} 14... c4 {[%clk 0:02:13.1]} 15. Be2
{[%clk 0:01:46.6]} 15... h6 {[%clk 0:02:10.7]} 16. O-O {[%clk 0:01:46.2]} 16...
Bf5 {[%clk 0:02:10.5]} 17. Ra1 {[%clk 0:01:38.6]} 17... Ke8 {[%clk 0:02:09.2]}
18. a4 {[%clk 0:01:27.4]} 18... Na5 {[%clk 0:01:56.6]} 19. Ra2 {[%clk
0:01:26.7]} 19... Kd7 {[%clk 0:01:52.4]} 20. Bc1 {[%clk 0:01:07.9]} 20... Ng6
{[%clk 0:01:24.9]} 21. g3 {[%clk 0:01:00.8]} 21... Nf8 {[%clk 0:01:20.7]} 22.
Ba3 {[%clk 0:00:56.9]} 22... Ne6 {[%clk 0:01:19.2]} 23. Rd1 {[%clk 0:00:53.8]}
23... g5 {[%clk 0:01:16.7]} 24. h4 {[%clk 0:00:50.9]} 24... Rhg8 {[%clk
0:01:13]} 25. h5 {[%clk 0:00:42.4]} 25... Bg4 {[%clk 0:01:05.5]} 26. Nh2 {[%clk
0:00:38.2]} 26... Bxe2 {[%clk 0:00:59.5]} 27. Rxe2 {[%clk 0:00:39.1]} 27... Ng7
{[%clk 0:00:55.9]} 28. Ng4 {[%clk 0:00:38.3]} 28... Nxh5 {[%clk 0:00:54.8]} 29.
Kg2 {[%clk 0:00:38]} 29... Rh8 {[%clk 0:00:37.5]} 30. e6+ {[%clk 0:00:26.7]}
30... fxe6 {[%clk 0:00:35.1]} 31. Ne5+ {[%clk 0:00:19.5]} 31... Kc7 {[%clk
0:00:35.1]} 32. Ng6 {[%clk 0:00:17.4]} 32... Rhe8 {[%clk 0:00:34]} 33. Rh1
{[%clk 0:00:17.5]} 33... Nf6 {[%clk 0:00:34]} 34. Rxh6 {[%clk 0:00:16.7]} 34...
Ne4 {[%clk 0:00:34.3]} 35. Rh7+ {[%clk 0:00:16.5]} 35... Kc6 {[%clk 0:00:32.5]}
36. Ne5# {[%clk 0:00:16.4]} 1-0

[Event "*** Titled Tuesday Blitz"]
[Site "Chess.com"]
[Date "2020.05.12"]
[Round "2"]
[White "mariangie523"]
[Black "willc-h99"]
[Result "0-1"]
[WhiteElo "2051"]
[BlackElo "2388"]
[TimeControl "180+1"]
[EndTime "10:17:43 PDT"]
[Termination "willc-h99 won on time"]

1. e4 {[%clk 0:03:00.3]} 1... c5 {[%clk 0:02:59.3]} 2. Nf3 {[%clk 0:03:00.3]}
2... g6 {[%clk 0:02:58.5]} 3. d4 {[%clk 0:02:59.8]} 3... cxd4 {[%clk 0:02:59.4]}
4. Nxd4 {[%clk 0:02:59.9]} 4... Bg7 {[%clk 0:02:59.1]} 5. c4 {[%clk 0:03:00]}
5... Nc6 {[%clk 0:02:59.3]} 6. Be3 {[%clk 0:02:55.7]} 6... Nf6 {[%clk
0:02:59.4]} 7. Nc3 {[%clk 0:02:55.3]} 7... O-O {[%clk 0:02:59.6]} 8. Be2 {[%clk
0:02:54.9]} 8... d6 {[%clk 0:03:00.1]} 9. O-O {[%clk 0:02:54.8]} 9... Bd7 {[%clk
0:03:00.7]} 10. f3 {[%clk 0:02:54.9]} 10... Nxd4 {[%clk 0:03:00.2]} 11. Bxd4
{[%clk 0:02:54.7]} 11... a5 {[%clk 0:03:01.1]} 12. Qd2 {[%clk 0:02:51.6]} 12...
Bc6 {[%clk 0:03:01.2]} 13. Be3 {[%clk 0:02:50.2]} 13... Nd7 {[%clk 0:03:00.9]}
14. Rfd1 {[%clk 0:02:49.6]} 14... Nc5 {[%clk 0:03:00.5]} 15. b3 {[%clk
0:02:42.6]} 15... Be5 {[%clk 0:02:58]} 16. Rac1 {[%clk 0:02:41.6]} 16... e6
{[%clk 0:02:57.7]} 17. f4 {[%clk 0:02:39]} 17... Bxc3 {[%clk 0:02:55.9]} 18.
Qxc3 {[%clk 0:02:36.5]} 18... Nxe4 {[%clk 0:02:55.5]} 19. Qd4 {[%clk 0:02:36.2]}
19... Qe7 {[%clk 0:02:49.9]} 20. Bf3 {[%clk 0:02:31.9]} 20... e5 {[%clk
0:02:35.7]} 21. Qd3 {[%clk 0:02:01.8]} 21... f5 {[%clk 0:02:15]} 22. Bxe4 {[%clk
0:01:25.9]} 22... fxe4 {[%clk 0:02:13.1]} 23. Qxd6 {[%clk 0:01:25.9]} 23... Qxd6
{[%clk 0:02:12.7]} 24. Rxd6 {[%clk 0:01:25.2]} 24... exf4 {[%clk 0:02:12.9]} 25.
Bc5 {[%clk 0:01:18.9]} 25... Rf5 {[%clk 0:02:08.6]} 26. Bb6 {[%clk 0:01:12]}
26... f3 {[%clk 0:01:59.4]} 27. gxf3 {[%clk 0:01:09.1]} 27... exf3 {[%clk
0:01:58.4]} 28. Kf2 {[%clk 0:01:09.4]} 28... Re8 {[%clk 0:01:54.9]} 29. Rd8
{[%clk 0:01:02.4]} 29... Rxd8 {[%clk 0:01:45.2]} 30. Bxd8 {[%clk 0:00:38.4]}
30... Kf7 {[%clk 0:01:39.4]} 31. Re1 {[%clk 0:00:30.2]} 31... h5 {[%clk
0:01:32.9]} 32. h4 {[%clk 0:00:26.7]} 32... Rf4 {[%clk 0:01:09.6]} 33. Re7+
{[%clk 0:00:12.5]} 33... Kf8 {[%clk 0:01:09.5]} 34. Re6 {[%clk 0:00:08.4]} 34...
Rg4 {[%clk 0:00:58.5]} 35. Re1 {[%clk 0:00:01.6]} 35... Rg2+ {[%clk 0:00:54]}
36. Ke3 {[%clk 0:00:02]} 36... Rxa2 {[%clk 0:00:49.7]} 37. Rf1 {[%clk
0:00:01.9]} 37... Kf7 {[%clk 0:00:46.8]} 0-1

[Event "*** Titled Tuesday Blitz"]
[Site "Chess.com"]
[Date "2020.05.12"]
[Round "2"]
[White "peixe64"]
[Black "mirceaparligras"]
[Result "0-1"]
[WhiteElo "2178"]
[BlackElo "2594"]
[TimeControl "180+1"]
[EndTime "10:17:44 PDT"]
[Termination "mirceaparligras won by resignation"]

1. d4 {[%clk 0:03:00.9]} 1... Nf6 {[%clk 0:02:59.7]} 2. c4 {[%clk 0:03:01.2]}
2... e6 {[%clk 0:03:00]} 3. Nc3 {[%clk 0:02:59.4]} 3... Bb4 {[%clk 0:02:59.4]}
4. e3 {[%clk 0:03:00]} 4... O-O {[%clk 0:02:59.3]} 5. Ne2 {[%clk 0:03:00.1]}
5... Re8 {[%clk 0:02:57.3]} 6. a3 {[%clk 0:02:59.7]} 6... Bf8 {[%clk 0:02:57.4]}
7. Ng3 {[%clk 0:02:56.6]} 7... d5 {[%clk 0:02:55.8]} 8. Be2 {[%clk 0:02:44.2]}
8... dxc4 {[%clk 0:02:52.1]} 9. Bxc4 {[%clk 0:02:32.9]} 9... c5 {[%clk
0:02:52.3]} 10. O-O {[%clk 0:02:28.6]} 10... cxd4 {[%clk 0:02:52.2]} 11. exd4
{[%clk 0:02:29.3]} 11... Nc6 {[%clk 0:02:51.6]} 12. Be3 {[%clk 0:02:16.1]} 12...
b6 {[%clk 0:02:51.5]} 13. Qd2 {[%clk 0:02:00.8]} 13... Na5 {[%clk 0:02:46.7]}
14. Bb5 {[%clk 0:01:59.9]} 14... Nb3 {[%clk 0:02:42.9]} 15. Qd1 {[%clk
0:01:54.8]} 15... Nxa1 {[%clk 0:02:42.7]} 16. Bxe8 {[%clk 0:01:53.1]} 16... Qxe8
{[%clk 0:02:43]} 17. Qxa1 {[%clk 0:01:52.4]} 17... Bb7 {[%clk 0:02:42.3]} 18.
Rd1 {[%clk 0:01:39.2]} 18... Rc8 {[%clk 0:02:36.6]} 19. f3 {[%clk 0:01:20.9]}
19... Nd5 {[%clk 0:02:26.6]} 20. Nxd5 {[%clk 0:01:16.9]} 20... Bxd5 {[%clk
0:02:27.5]} 21. Rc1 {[%clk 0:01:11.5]} 21... h6 {[%clk 0:02:23.3]} 22. Ne2
{[%clk 0:01:00.9]} 22... Be7 {[%clk 0:02:15.2]} 23. Nc3 {[%clk 0:00:57.7]} 23...
Bb7 {[%clk 0:02:13.6]} 24. Rd1 {[%clk 0:00:54.6]} 24... Rd8 {[%clk 0:01:54.4]}
25. Bf2 {[%clk 0:00:53.6]} 25... Qc6 {[%clk 0:01:45.6]} 26. Qb1 {[%clk
0:00:52.4]} 26... Qc4 {[%clk 0:01:40.7]} 27. Qd3 {[%clk 0:00:44.8]} 27... Qb3
{[%clk 0:01:27.6]} 28. Rd2 {[%clk 0:00:36]} 28... Rc8 {[%clk 0:01:19.5]} 29. Nd1
{[%clk 0:00:24]} 29... Bd5 {[%clk 0:01:12]} 30. Qxb3 {[%clk 0:00:22.8]} 30...
Bxb3 {[%clk 0:01:12]} 31. Kf1 {[%clk 0:00:20.9]} 31... Rc1 {[%clk 0:01:09.5]}
32. Ke1 {[%clk 0:00:21]} 32... Bg5 {[%clk 0:01:03.7]} 33. Rd3 {[%clk 0:00:21.3]}
33... Bc2 {[%clk 0:01:00.3]} 34. Rc3 {[%clk 0:00:21.6]} 34... Rxd1+ {[%clk
0:00:58.9]} 35. Ke2 {[%clk 0:00:21.9]} 35... Rd2+ {[%clk 0:00:58.4]} 36. Ke1
{[%clk 0:00:21.8]} 36... Ba4 {[%clk 0:00:52.8]} 37. b3 {[%clk 0:00:18.7]} 37...
Bb5 {[%clk 0:00:51.1]} 38. h4 {[%clk 0:00:19]} 38... Re2+ {[%clk 0:00:49.2]} 39.
Kd1 {[%clk 0:00:15.1]} 39... Rxf2 {[%clk 0:00:49.2]} 40. hxg5 {[%clk 0:00:15.5]}
40... hxg5 {[%clk 0:00:49.8]} 41. a4 {[%clk 0:00:16]} 41... Ba6 {[%clk
0:00:48.7]} 42. b4 {[%clk 0:00:16.1]} 42... Rxg2 {[%clk 0:00:46.9]} 0-1

[Event "*** Titled Tuesday Blitz"]
[Site "Chess.com"]
[Date "2020.05.12"]
[Round "2"]
[White "viktorskliarov"]
[Black "Morshynska"]
[Result "1-0"]
[WhiteElo "2593"]
[BlackElo "2165"]
[TimeControl "180+1"]
[EndTime "10:17:48 PDT"]
[Termination "viktorskliarov won by resignation"]

1. e4 {[%clk 0:03:00.9]} 1... Nc6 {[%clk 0:02:57.9]} 2. Nc3 {[%clk 0:02:57.9]}
2... d6 {[%clk 0:02:54.8]} 3. d4 {[%clk 0:02:55.2]} 3... Nf6 {[%clk 0:02:52]} 4.
d5 {[%clk 0:02:53.4]} 4... Nb8 {[%clk 0:02:48.6]} 5. f3 {[%clk 0:02:52.1]} 5...
g6 {[%clk 0:02:37.3]} 6. Be3 {[%clk 0:02:51.7]} 6... Bg7 {[%clk 0:02:36.3]} 7.
Qd2 {[%clk 0:02:52]} 7... h6 {[%clk 0:02:34.8]} 8. O-O-O {[%clk 0:02:50.8]} 8...
a6 {[%clk 0:02:34.5]} 9. g4 {[%clk 0:02:50.3]} 9... b5 {[%clk 0:02:33.4]} 10. h4
{[%clk 0:02:48.9]} 10... Nbd7 {[%clk 0:02:17.4]} 11. Kb1 {[%clk 0:02:47.9]}
11... Bb7 {[%clk 0:02:13.6]} 12. Nge2 {[%clk 0:02:29.7]} 12... Nb6 {[%clk
0:02:07.7]} 13. Nd4 {[%clk 0:02:00]} 13... Qd7 {[%clk 0:01:26.8]} 14. b3 {[%clk
0:01:48.1]} 14... e6 {[%clk 0:00:49.5]} 15. dxe6 {[%clk 0:01:42.5]} 15... fxe6
{[%clk 0:00:50.4]} 16. Bh3 {[%clk 0:01:42.3]} 16... c5 {[%clk 0:00:35.1]} 17. g5
{[%clk 0:00:50.1]} 17... cxd4 {[%clk 0:00:27.2]} 18. Bxd4 {[%clk 0:00:49.5]}
18... hxg5 {[%clk 0:00:19.9]} 19. hxg5 {[%clk 0:00:48.5]} 19... Nh5 {[%clk
0:00:16.8]} 20. Bxb6 {[%clk 0:00:47.6]} 20... Qc6 {[%clk 0:00:16.3]} 21. Bd4
{[%clk 0:00:46.6]} 21... e5 {[%clk 0:00:12.1]} 22. Bf2 {[%clk 0:00:42.2]} 22...
Rd8 {[%clk 0:00:12.1]} 23. Nd5 {[%clk 0:00:42.1]} 23... Rf8 {[%clk 0:00:08.1]}
24. Bg4 {[%clk 0:00:42.1]} 24... Nf4 {[%clk 0:00:06.4]} 25. Rh7 {[%clk
0:00:41.5]} 25... Bh8 {[%clk 0:00:05.4]} 26. Rdh1 {[%clk 0:00:39.5]} 26... Nh5
{[%clk 0:00:04]} 27. Nc7+ {[%clk 0:00:31]} 27... Qxc7 {[%clk 0:00:02.8]} 28.
Rxc7 {[%clk 0:00:31.9]} 28... Ba8 {[%clk 0:00:01.6]} 29. Rxh5 {[%clk 0:00:31.3]}
29... gxh5 {[%clk 0:00:02.5]} 30. Bxh5+ {[%clk 0:00:32.1]} 1-0

[Event "*** Titled Tuesday Blitz"]
[Site "Chess.com"]
[Date "2020.05.12"]
[Round "2"]
[White "Chessmasterzt"]
[Black "Trickov"]
[Result "1-0"]
[WhiteElo "2569"]
[BlackElo "2297"]
[TimeControl "180+1"]
[EndTime "10:17:49 PDT"]
[Termination "Chessmasterzt won on time"]

1. Nf3 {[%clk 0:03:00.9]} 1... d5 {[%clk 0:02:13.4]} 2. c4 {[%clk 0:02:59.6]}
2... c6 {[%clk 0:02:12.5]} 3. g3 {[%clk 0:02:59]} 3... Bf5 {[%clk 0:02:09.9]} 4.
Bg2 {[%clk 0:02:59.9]} 4... Nf6 {[%clk 0:02:09.6]} 5. Qb3 {[%clk 0:02:59.2]}
5... Qb6 {[%clk 0:02:09]} 6. d3 {[%clk 0:02:59.6]} 6... e6 {[%clk 0:02:08.4]} 7.
Be3 {[%clk 0:03:00]} 7... Qxb3 {[%clk 0:02:08]} 8. axb3 {[%clk 0:03:00.9]} 8...
a6 {[%clk 0:02:08.3]} 9. Nc3 {[%clk 0:03:01.1]} 9... Nbd7 {[%clk 0:02:08.4]} 10.
cxd5 {[%clk 0:02:57.9]} 10... exd5 {[%clk 0:02:08.1]} 11. Nd4 {[%clk 0:02:58.2]}
11... Bg6 {[%clk 0:02:07.2]} 12. Nc2 {[%clk 0:02:58.6]} 12... Be7 {[%clk
0:02:02.6]} 13. b4 {[%clk 0:02:54.8]} 13... O-O {[%clk 0:02:00.3]} 14. Bd4
{[%clk 0:02:52.6]} 14... Rfe8 {[%clk 0:01:58.5]} 15. Na4 {[%clk 0:02:45.5]}
15... Bf8 {[%clk 0:01:31.5]} 16. Kd2 {[%clk 0:02:45.8]} 16... Rac8 {[%clk
0:01:25.5]} 17. Nc5 {[%clk 0:02:44.3]} 17... Rb8 {[%clk 0:01:10.7]} 18. f4
{[%clk 0:02:39.9]} 18... Nxc5 {[%clk 0:00:47.6]} 19. bxc5 {[%clk 0:02:39.3]}
19... Nd7 {[%clk 0:00:47.2]} 20. b4 {[%clk 0:02:38.3]} 20... f6 {[%clk
0:00:46.8]} 21. Bh3 {[%clk 0:02:35.4]} 21... Rbd8 {[%clk 0:00:43]} 22. Rac1
{[%clk 0:02:28.8]} 22... Bf7 {[%clk 0:00:42.7]} 23. Na1 {[%clk 0:02:28.7]} 23...
Be6 {[%clk 0:00:42.7]} 24. Bg2 {[%clk 0:02:23.2]} 24... f5 {[%clk 0:00:41.8]}
25. Nb3 {[%clk 0:02:22.8]} 25... g6 {[%clk 0:00:40.9]} 26. Na5 {[%clk
0:02:22.8]} 26... Rb8 {[%clk 0:00:40.9]} 27. h3 {[%clk 0:02:22.9]} 27... Bg7
{[%clk 0:00:40.9]} 28. Nb3 {[%clk 0:02:17.3]} 28... Bf7 {[%clk 0:00:39.5]} 29.
Bf3 {[%clk 0:02:16.5]} 29... Re7 {[%clk 0:00:26.4]} 30. g4 {[%clk 0:02:13.1]}
30... Rbe8 {[%clk 0:00:21.9]} 31. Rhg1 {[%clk 0:02:10.3]} 31... fxg4 {[%clk
0:00:11]} 32. hxg4 {[%clk 0:02:09.9]} 32... Bxd4 {[%clk 0:00:09.7]} 33. Nxd4
{[%clk 0:02:10.8]} 33... Nf8 {[%clk 0:00:10]} 34. f5 {[%clk 0:02:07.5]} 34...
Kg7 {[%clk 0:00:09.3]} 35. g5 {[%clk 0:02:06.2]} 35... Kg8 {[%clk 0:00:08.7]}
36. Rcf1 {[%clk 0:01:58.8]} 36... gxf5 {[%clk 0:00:08]} 37. Nxf5 {[%clk
0:01:59.7]} 37... Rc7 {[%clk 0:00:07.5]} 38. Nd6 {[%clk 0:01:54]} 38... Rd8
{[%clk 0:00:05.3]} 39. Bg4 {[%clk 0:01:45.8]} 39... Bg6 {[%clk 0:00:05.1]} 40.
Rf6 {[%clk 0:01:44.5]} 40... Kg7 {[%clk 0:00:04.9]} 41. Rgf1 {[%clk 0:01:43.7]}
41... Nd7 {[%clk 0:00:05]} 42. Re6 {[%clk 0:01:31.4]} 42... Nf8 {[%clk
0:00:04.1]} 43. Ref6 {[%clk 0:01:31.7]} 43... Re7 {[%clk 0:00:04.2]} 44. Bf5
{[%clk 0:01:28.5]} 44... Nd7 {[%clk 0:00:03.9]} 45. Bxg6 {[%clk 0:01:23.6]}
45... hxg6 {[%clk 0:00:01.9]} 46. Rf7+ {[%clk 0:01:23.9]} 46... Rxf7 {[%clk
0:00:01.8]} 47. Rxf7+ {[%clk 0:01:24.4]} 47... Kg8 {[%clk 0:00:02.3]} 48. Nxb7
{[%clk 0:01:16.4]} 1-0